[Event "IV Elllobregat Open Chess Tmnt"]
[Site "Sant Boi de Llobregat, Spain"]
[Date "2023.12.02"]
[Round "3.55"]
[White "Proudian, Armen"]
[Black "Selbes, Tamer Tarik"]
[Result "1/2-1/2"]
[TimeControl "90min/40moves + 15min/end + 30sec from move 1"]
[WhiteFideId "2130734"]
[BlackFideId "6302513"]
[WhiteElo "2428"]
[BlackElo "2238"]

1. e4 {[%clk 01:30:56]} {[%emt 00:00:03]} e5 {[%clk 01:28:41]} {[%emt
00:02:20]} 2. Nf3 {[%clk 01:31:04]} {[%emt 00:00:22]} Nc6 {[%clk 01:29:05]}
{[%emt 00:00:06]} 3. Bb5 {[%clk 01:31:11]} {[%emt 00:00:23]} a6 {[%clk
01:29:15]} {[%emt 00:00:21]} 4. Ba4 {[%clk 01:31:15]} {[%emt 00:00:25]} Nf6
{[%clk 01:29:37]} {[%emt 00:00:07]} 5. O-O {[%clk 01:31:07]} {[%emt 00:00:38]}
Be7 {[%clk 01:29:31]} {[%emt 00:00:36]} 6. Re1 {[%clk 01:30:48]} {[%emt
00:00:50]} b5 {[%clk 01:29:51]} {[%emt 00:00:11]} 7. Bb3 {[%clk 01:31:09]}
{[%emt 00:00:09]} d6 {[%clk 01:28:19]} {[%emt 00:02:02]} 8. c3 {[%clk
01:26:51]} {[%emt 00:04:47]} O-O {[%clk 01:28:38]} {[%emt 00:00:10]} 9. a4
{[%clk 01:26:42]} {[%emt 00:00:39]} Bb7 {[%clk 01:26:18]} {[%emt 00:02:51]} 10.
d4 {[%clk 01:25:27]} {[%emt 00:01:45]} h6 {[%clk 01:15:35]} {[%emt 00:11:13]}
11. d5 {[%clk 01:14:45]} {[%emt 00:11:12]} Na5 {[%clk 01:15:05]} {[%emt
00:00:59]} 12. Bc2 {[%clk 01:10:06]} {[%emt 00:05:09]} c6 {[%clk 01:15:21]}
{[%emt 00:00:14]} 13. dxc6 {[%clk 01:08:45]} {[%emt 00:01:52]} Bxc6 {[%clk
01:03:33]} {[%emt 00:12:18]} 14. Nbd2 {[%clk 01:07:43]} {[%emt 00:01:32]} Qd7
{[%clk 00:58:36]} {[%emt 00:05:28]} 15. b4 {[%clk 00:57:33]} {[%emt 00:10:39]}
Nb7 {[%clk 00:58:45]} {[%emt 00:00:21]} 16. a5 {[%clk 00:53:03]} {[%emt
00:05:01]} Nd8 {[%clk 00:58:50]} {[%emt 00:00:24]} 17. Nf1 {[%emt 00:02:06]}
Ne6 {[%emt 00:00:17]} 18. Ne3 {[%clk 00:48:05]} {[%emt 00:03:53]} Qb7 {[%clk
00:50:54]} {[%emt 00:08:39]} 19. Nf5 {[%clk 00:47:14]} {[%emt 00:01:20]} Rfd8
{[%clk 00:51:18]} {[%emt 00:00:06]} 20. N3h4 {[%clk 00:33:45]} {[%emt
00:13:59]} Bf8 {[%clk 00:51:19]} {[%emt 00:00:29]} 21. Qd3 {[%clk 00:26:19]}
{[%emt 00:07:56]} Ng5 {[%clk 00:46:52]} {[%emt 00:04:56]} 22. Bxg5 {[%clk
00:23:57]} {[%emt 00:02:53]} hxg5 {[%clk 00:47:18]} {[%emt 00:00:05]} 23. Nf3
{[%clk 00:24:09]} {[%emt 00:00:18]} g4 {[%clk 00:43:32]} {[%emt 00:04:16]} 24.
Nd2 {[%clk 00:18:07]} {[%emt 00:06:32]} g6 {[%clk 00:36:21]} {[%emt 00:07:41]}
25. Ne3 {[%clk 00:17:55]} {[%emt 00:00:42]} Bh6 {[%clk 00:32:59]} {[%emt
00:03:52]} 26. Bb3 {[%clk 00:17:05]} {[%emt 00:01:20]} Kg7 {[%clk 00:29:35]}
{[%emt 00:03:54]} 27. Nd5 {[%clk 00:16:22]} {[%emt 00:01:14]} Bxd5 {[%clk
00:29:40]} {[%emt 00:00:25]} 28. Bxd5 {[%clk 00:16:33]} {[%emt 00:00:19]} Nxd5
{[%clk 00:30:04]} {[%emt 00:00:05]} 29. exd5 {[%clk 00:16:57]} {[%emt
00:00:06]} f5 {[%clk 00:23:23]} {[%emt 00:07:11]} 30. Nf1 {[%clk 00:13:43]}
{[%emt 00:03:44]} Rac8 {[%clk 00:23:45]} {[%emt 00:00:07]} 31. Ne3 {[%clk
00:13:39]} {[%emt 00:00:34]} Rh8 {[%emt 00:09:06]} 32. Rac1 {[%emt 00:03:34]}
Bxe3 {[%clk 00:10:01]} {[%emt 00:05:38]} 33. Qxe3 {[%clk 00:08:31]} {[%emt
00:02:34]} Rc4 {[%clk 00:09:46]} {[%emt 00:00:44]} 34. Qg5 {[%clk 00:08:26]}
{[%emt 00:00:36]} Qd7 {[%clk 00:06:03]} {[%emt 00:04:13]} 35. Qe3 {[%clk
00:08:35]} {[%emt 00:00:21]} Qc7 {[%clk 00:05:38]} {[%emt 00:00:55]} 36. Qb6
{[%clk 00:06:10]} {[%emt 00:02:55]} Qxb6 {[%clk 00:05:26]} {[%emt 00:00:42]} 37.
axb6 {[%clk 00:06:36]} {[%emt 00:00:05]} Rb8 {[%clk 00:05:52]} {[%emt
00:00:03]} 38. Ra1 {[%clk 00:06:34]} {[%emt 00:00:31]} Rxb6 {[%clk 00:06:15]}
{[%emt 00:00:08]} 39. Ra3 {[%clk 00:06:42]} {[%emt 00:00:22]} e4 {[%clk
00:06:10]} {[%emt 00:00:34]} 40. f4 {[%clk 00:16:34]} {[%emt 00:05:39]} gxf3
{[%clk 00:20:59]} {[%emt 00:00:41]} 41. gxf3 {[%clk 00:16:53]} {[%emt
00:00:11]} exf3 {[%clk 00:15:05]} {[%emt 00:06:24]} 42. Kf2 {[%clk 00:12:35]}
{[%emt 00:04:48]} Rh4 {[%clk 00:10:08]} {[%emt 00:05:27]} 43. Kg3 {[%clk
00:11:16]} {[%emt 00:01:49]} Re4 {[%clk 00:06:42]} {[%emt 00:03:56]} 44. Rea1
{[%clk 00:10:56]} {[%emt 00:00:50]} Kf6 {[%clk 00:06:40]} {[%emt 00:00:32]} 45.
Rxa6 {[%clk 00:05:52]} {[%emt 00:05:35]} Rxa6 {[%clk 00:07:06]} {[%emt
00:00:04]} 46. Rxa6 {[%clk 00:06:14]} {[%emt 00:00:07]} Ke5 {[%clk 00:07:28]}
{[%emt 00:00:08]} 47. Rb6 {[%clk 00:05:45]} {[%emt 00:00:59]} Re3 {[%clk
00:07:15]} {[%emt 00:00:42]} 48. Rxb5 {[%clk 00:05:30]} {[%emt 00:00:46]} Rxc3
{[%clk 00:07:41]} {[%emt 00:00:04]} 49. h4 {[%emt 00:03:15]} Ke4 {[%emt
00:00:14]} 50. Rb8 {[%clk 00:02:30]} {[%emt 00:00:45]} f4+ {[%clk 00:08:14]}
{[%emt 00:00:13]} 51. Kf2 {[%clk 00:02:45]} {[%emt 00:00:16]} Rc2+ {[%clk
00:08:39]} {[%emt 00:00:05]} 52. Kf1 {[%clk 00:02:56]} {[%emt 00:00:19]} Kxd5
{[%clk 00:04:06]} {[%emt 00:05:04]} 53. b5 {[%clk 00:01:16]} {[%emt 00:02:10]}
Rh2 {[%clk 00:03:18]} {[%emt 00:01:17]} 54. Rg8 {[%clk 00:00:53]} {[%emt
00:00:53]} Rg2 {[%clk 00:01:59]} {[%emt 00:01:48]} 55. b6 {[%clk 00:00:44]}
{[%emt 00:00:40]} Kc6 {[%clk 00:02:14]} {[%emt 00:00:14]} 56. Rd8 {[%clk
00:01:07]} {[%emt 00:00:08]} Kxb6 {[%clk 00:00:59]} {[%emt 00:01:46]} 57. Rxd6+
{[%clk 00:01:30]} {[%emt 00:00:06]} Kc5 {[%clk 00:01:27]} {[%emt 00:00:03]} 58.
Rd8 {[%clk 00:00:38]} {[%emt 00:01:22]} Rg4 {[%clk 00:01:30]} {[%emt 00:00:26]}
59. Rg8 {[%clk 00:00:47]} {[%emt 00:00:22]} Kd4 {[%clk 00:01:49]} {[%emt
00:00:11]} 60. Kf2 {[%clk 00:01:12]} {[%emt 00:00:05]} Rg3 {[%clk 00:00:51]}
{[%emt 00:01:28]} 61. Re8 {[%clk 00:01:16]} {[%emt 00:00:26]} Rh3 {[%clk
00:00:58]} {[%emt 00:00:23]} 62. Re6 {[%clk 00:01:27]} {[%emt 00:00:19]} Rg3
{[%clk 00:00:43]} {[%emt 00:00:44]} 63. Re7 {[%clk 00:00:58]} {[%emt 00:01:00]}
Kd5 {[%clk 00:01:10]} {[%emt 00:00:03]} 64. Re8 {[%clk 00:00:54]} {[%emt
00:00:34]} Rh3 {[%clk 00:01:26]} {[%emt 00:00:14]} 65. Rg8 {[%clk 00:01:18]}
{[%emt 00:00:06]} Ke4 {[%clk 00:01:45]} {[%emt 00:00:11]} 66. Rxg6 {[%clk
00:01:24]} {[%emt 00:00:25]} Rh2+ {[%clk 00:02:07]} {[%emt 00:00:07]} 67. Kf1
{[%clk 00:01:06]} {[%emt 00:00:48]} Rxh4 {[%clk 00:01:15]} {[%emt 00:01:23]} 68.
Re6+ {[%clk 00:01:01]} {[%emt 00:00:36]} Kf5 {[%clk 00:01:39]} {[%emt
00:00:06]} 69. Re8 {[%clk 00:01:19]} {[%emt 00:00:12]} Rh2 {[%clk 00:00:40]}
{[%emt 00:01:28]} 70. Rf8+ {[%clk 00:01:33]} {[%emt 00:00:15]} Ke5 {[%clk
00:00:55]} {[%emt 00:00:14]} 71. Re8+ {[%clk 00:01:50]} {[%emt 00:00:14]} Kd5
{[%clk 00:00:58]} {[%emt 00:00:28]} 72. Rd8+ {[%clk 00:02:10]} {[%emt
00:00:10]} Ke6 {[%clk 00:01:23]} {[%emt 00:00:04]} 73. Re8+ {[%clk 00:01:41]}
{[%emt 00:00:59]} Kf7 {[%clk 00:01:29]} {[%emt 00:00:23]} 74. Re4 {[%clk
00:01:50]} {[%emt 00:00:21]} Rh4 {[%clk 00:01:48]} {[%emt 00:00:12]} 75. Kf2
{[%clk 00:02:06]} {[%emt 00:00:13]} Kf6 {[%clk 00:02:14]} {[%emt 00:00:04]} 76.
Re8 {[%clk 00:02:13]} {[%emt 00:00:23]} Rh3 {[%clk 00:02:21]} {[%emt 00:00:22]}
77. Rf8+ {[%clk 00:02:34]} {[%emt 00:00:10]} Kg7 {[%clk 00:02:21]} {[%emt
00:00:30]} 78. Rxf4 {[%clk 00:02:57]} {[%emt 00:00:07]} 1/2-1/2

[ePGN "0.1;DGT LiveChess/2.2.6"]

[Event "IV Elllobregat Open Chess Tmnt"]
[Site "Sant Boi de Llobregat, Spain"]
[Date "2023.12.03"]
[Round "4.1"]
[White "Narayanan, SL"]
[Black "Kozak, Adam"]
[Result "1-0"]
[TimeControl "90min/40moves + 15min/end + 30sec from move 1"]
[WhiteFideId "5058422"]
[BlackFideId "753246"]
[WhiteElo "2668"]
[BlackElo "2578"]

1. c4 {[%clk 01:30:53]} {[%emt 00:00:06]} e6 {[%clk 01:28:19]} {[%emt
00:02:42]} 2. Nc3 {[%clk 01:30:55]} {[%emt 00:00:28]} b6 {[%clk 01:24:56]}
{[%emt 00:03:54]} 3. d4 {[%clk 01:30:21]} {[%emt 00:01:02]} Bb4 {[%clk
01:22:45]} {[%emt 00:02:42]} 4. e4 {[%clk 01:30:04]} {[%emt 00:00:46]} Bb7
{[%clk 01:19:27]} {[%emt 00:03:49]} 5. f3 {[%clk 01:30:22]} {[%emt 00:00:12]}
Bxc3+ {[%clk 01:15:41]} {[%emt 00:04:17]} 6. bxc3 {[%clk 01:30:44]} {[%emt
00:00:07]} Ne7 {[%clk 01:16:04]} {[%emt 00:00:06]} 7. Bd3 {[%clk 01:29:40]}
{[%emt 00:01:33]} f5 {[%clk 01:06:30]} {[%emt 00:10:05]} 8. Nh3 {[%clk
01:27:05]} {[%emt 00:03:04]} O-O {[%clk 01:02:18]} {[%emt 00:04:44]} 9. exf5
{[%clk 01:23:52]} {[%emt 00:03:42]} Nxf5 {[%clk 01:01:17]} {[%emt 00:01:31]} 10.
O-O {[%clk 01:24:11]} {[%emt 00:00:10]} Nc6 {[%clk 00:56:07]} {[%emt 00:05:41]}
11. Qc2 {[%clk 01:15:02]} {[%emt 00:09:38]} h6 {[%clk 00:45:03]} {[%emt
00:11:35]} 12. Qe2 {[%clk 01:00:21]} {[%emt 00:15:11]} Qf6 {[%clk 00:41:08]}
{[%emt 00:04:27]} 13. Bf4 {[%clk 00:57:38]} {[%emt 00:03:12]} d6 {[%clk
00:34:48]} {[%emt 00:06:51]} 14. Rae1 {[%clk 00:49:46]} {[%emt 00:08:20]} Rae8
{[%clk 00:34:36]} {[%emt 00:00:43]} 15. Bd2 {[%clk 00:47:51]} {[%emt 00:02:24]}
e5 {[%clk 00:33:31]} {[%emt 00:01:37]} 16. d5 {[%clk 00:40:32]} {[%emt
00:07:49]} Na5 {[%clk 00:33:54]} {[%emt 00:00:07]} 17. g4 {[%clk 00:34:56]}
{[%emt 00:06:05]} Qh4 {[%clk 00:31:32]} {[%emt 00:02:53]} 18. Qg2 {[%clk
00:32:41]} {[%emt 00:02:44]} Ne7 {[%clk 00:31:48]} {[%emt 00:00:15]} 19. g5
{[%clk 00:24:43]} {[%emt 00:08:28]} Kh8 {[%clk 00:29:04]} {[%emt 00:03:15]} 20.
Re4 {[%clk 00:18:09]} {[%emt 00:07:04]} Qh5 {[%clk 00:29:12]} {[%emt 00:00:21]}
21. Be1 {[%clk 00:17:59]} {[%emt 00:00:40]} Qg6 {[%clk 00:18:03]} {[%emt
00:11:39]} 22. Bg3 {[%clk 00:11:02]} {[%emt 00:07:26]} Bc8 {[%clk 00:10:15]}
{[%emt 00:08:18]} 23. gxh6 {[%clk 00:08:40]} {[%emt 00:02:52]} gxh6 {[%clk
00:10:40]} {[%emt 00:00:06]} 24. Rh4 {[%clk 00:07:07]} {[%emt 00:02:02]} Bf5
{[%clk 00:10:55]} {[%emt 00:00:15]} 25. Be2 {[%clk 00:07:20]} {[%emt 00:00:17]}
Qg7 {[%clk 00:08:11]} {[%emt 00:03:14]} 26. f4 {[%clk 00:06:31]} {[%emt
00:01:19]} Ng6 {[%clk 00:03:02]} {[%emt 00:05:39]} 27. Rh5 {[%clk 00:06:55]}
{[%emt 00:00:06]} Be4 {[%clk 00:02:54]} {[%emt 00:00:39]} 28. Qxe4 {[%clk
00:06:40]} {[%emt 00:00:44]} exf4 {[%clk 00:03:19]} {[%emt 00:00:05]} 29. Qd3
{[%clk 00:06:14]} {[%emt 00:00:56]} fxg3 {[%clk 00:03:25]} {[%emt 00:00:24]} 30.
Rxf8+ {[%clk 00:06:20]} {[%emt 00:00:24]} Nxf8 {[%clk 00:00:40]} {[%emt
00:03:16]} 31. hxg3 {[%clk 00:06:43]} {[%emt 00:00:08]} Nb7 {[%clk 00:00:43]}
{[%emt 00:00:27]} 32. Nf2 {[%clk 00:05:06]} {[%emt 00:02:06]} Nc5 {[%clk
00:00:45]} {[%emt 00:00:28]} 33. Qf3 {[%clk 00:05:30]} {[%emt 00:00:06]} Nh7
{[%clk 00:00:33]} {[%emt 00:00:42]} 34. Ng4 {[%clk 00:05:38]} {[%emt 00:00:22]}
Ne4 {[%clk 00:00:32]} {[%emt 00:00:32]} 35. Rxh6 {[%clk 00:05:40]} {[%emt
00:00:27]} Neg5 {[%clk 00:00:32]} {[%emt 00:00:30]} 36. Qd3 {[%clk 00:05:35]}
{[%emt 00:00:35]} Ne4 {[%clk 00:00:32]} {[%emt 00:00:30]} 37. Kg2 {[%clk
00:05:30]} {[%emt 00:00:35]} Re7 {[%clk 00:00:35]} {[%emt 00:00:28]} 38. Bf3
{[%clk 00:05:35]} {[%emt 00:00:24]} Neg5 {[%clk 00:00:34]} {[%emt 00:00:31]} 39.
Rg6 {[%clk 00:05:23]} {[%emt 00:00:43]} Qf8 {[%clk 00:00:32]} {[%emt 00:00:32]}
40. Qd4+ {[%clk 00:19:14]} {[%emt 00:01:38]} Rg7 {[%clk 00:15:47]} {[%emt
00:00:15]} 41. Be2 {[%clk 00:19:08]} {[%emt 00:00:36]} Qf7 {[%clk 00:10:30]}
{[%emt 00:05:48]} 42. Rh6 {[%clk 00:19:01]} {[%emt 00:00:36]} Kg8 {[%clk
00:00:47]} {[%emt 00:10:13]} 43. Rh1 {[%clk 00:18:32]} {[%emt 00:00:59]} Qe8
{[%clk 00:00:32]} {[%emt 00:00:45]} 44. Bd3 {[%clk 00:18:29]} {[%emt 00:00:34]}
c5 {[%clk 00:00:33]} {[%emt 00:00:30]} 45. Qf4 {[%clk 00:18:26]} {[%emt
00:00:32]} Qe7 {[%clk 00:00:31]} {[%emt 00:00:33]} 46. Nh6+ {[%clk 00:18:42]}
{[%emt 00:00:13]} 1-0

[Event "IV Elllobregat Open Chess Tmnt"]
[Site "Sant Boi de Llobregat, Spain"]
[Date "2023.12.03"]
[Round "4.2"]
[White "Ioannidis, Evgenios"]
[Black "Pichot, Alan"]
[Result "1-0"]
[TimeControl "90min/40moves + 15min/end + 30sec from move 1"]
[WhiteFideId "4229274"]
[BlackFideId "110973"]
[WhiteElo "2502"]
[BlackElo "2650"]

1. d4 {[%clk 01:30:01]} {[%emt 00:00:59]} Nf6 {[%clk 01:30:06]} {[%emt
00:00:54]} 2. c4 {[%clk 01:30:19]} {[%emt 00:00:11]} e6 {[%clk 01:30:20]}
{[%emt 00:00:16]} 3. Nc3 {[%clk 01:30:31]} {[%emt 00:00:18]} Bb4 {[%clk
01:30:36]} {[%emt 00:00:15]} 4. Nf3 {[%clk 01:30:19]} {[%emt 00:00:42]} b6
{[%clk 01:29:04]} {[%emt 00:02:02]} 5. Qb3 {[%clk 01:27:20]} {[%emt 00:03:28]}
a5 {[%clk 01:26:43]} {[%emt 00:02:52]} 6. g3 {[%clk 01:26:52]} {[%emt
00:00:58]} Bb7 {[%clk 01:23:11]} {[%emt 00:04:03]} 7. Bg2 {[%clk 01:27:11]}
{[%emt 00:00:09]} O-O {[%clk 01:21:53]} {[%emt 00:01:49]} 8. O-O {[%clk
01:27:26]} {[%emt 00:00:14]} Bxc3 {[%clk 01:18:56]} {[%emt 00:03:28]} 9. Qxc3
{[%clk 01:27:44]} {[%emt 00:00:11]} d6 {[%clk 01:19:04]} {[%emt 00:00:23]} 10.
b3 {[%clk 01:26:52]} {[%emt 00:01:21]} Nbd7 {[%clk 01:18:27]} {[%emt 00:01:07]}
11. Bb2 {[%clk 01:27:05]} {[%emt 00:00:17]} Qb8 {[%clk 01:15:06]} {[%emt
00:03:52]} 12. Rad1 {[%clk 01:19:52]} {[%emt 00:07:43]} Be4 {[%clk 01:10:44]}
{[%emt 00:04:52]} 13. Bh3 {[%clk 01:19:24]} {[%emt 00:00:58]} b5 {[%clk
01:08:32]} {[%emt 00:02:42]} 14. d5 {[%clk 01:01:14]} {[%emt 00:18:40]} e5
{[%clk 01:06:01]} {[%emt 00:03:00]} 15. Nd2 {[%clk 00:49:27]} {[%emt 00:12:17]}
Bg6 {[%clk 00:51:14]} {[%emt 00:15:18]} 16. cxb5 {[%clk 00:49:22]} {[%emt
00:00:36]} Nxd5 {[%clk 00:23:17]} {[%emt 00:28:27]} 17. Qc6 {[%clk 00:49:46]}
{[%emt 00:00:05]} N7b6 {[%clk 00:23:28]} {[%emt 00:00:20]} 18. Bg2 {[%clk
00:31:33]} {[%emt 00:18:43]} Nb4 {[%clk 00:22:45]} {[%emt 00:01:13]} 19. Qc1
{[%clk 00:31:59]} {[%emt 00:00:04]} Nxa2 {[%clk 00:07:47]} {[%emt 00:15:28]} 20.
Qa1 {[%clk 00:32:25]} {[%emt 00:00:04]} Nb4 {[%clk 00:08:11]} {[%emt 00:00:06]}
21. Bxa8 {[%clk 00:32:50]} {[%emt 00:00:04]} Qxa8 {[%clk 00:08:27]} {[%emt
00:00:14]} 22. Bc3 {[%clk 00:33:14]} {[%emt 00:00:06]} N6d5 {[%clk 00:07:17]}
{[%emt 00:01:40]} 23. Bxb4 {[%clk 00:29:31]} {[%emt 00:04:14]} Nxb4 {[%clk
00:05:39]} {[%emt 00:02:08]} 24. Nc4 {[%clk 00:29:10]} {[%emt 00:00:50]} Nc2
{[%clk 00:04:10]} {[%emt 00:01:59]} 25. Qxa5 {[%clk 00:29:08]} {[%emt
00:00:33]} Qxa5 {[%clk 00:03:03]} {[%emt 00:01:37]} 26. Nxa5 {[%clk 00:29:32]}
{[%emt 00:00:06]} Nd4 {[%clk 00:03:23]} {[%emt 00:00:10]} 27. Rxd4 {[%clk
00:05:55]} {[%emt 00:24:07]} exd4 {[%clk 00:03:52]} {[%emt 00:00:01]} 28. Rc1
{[%clk 00:05:40]} {[%emt 00:00:45]} d3 {[%clk 00:04:17]} {[%emt 00:00:05]} 29.
exd3 {[%clk 00:06:07]} {[%emt 00:00:03]} Bxd3 {[%clk 00:04:41]} {[%emt
00:00:06]} 30. Rxc7 {[%clk 00:06:34]} {[%emt 00:00:03]} Bxb5 {[%clk 00:05:03]}
{[%emt 00:00:08]} 31. Nb7 {[%clk 00:07:01]} {[%emt 00:00:03]} d5 {[%clk
00:04:53]} {[%emt 00:00:40]} 32. Nd6 {[%clk 00:07:19]} {[%emt 00:00:12]} Be2
{[%clk 00:04:57]} {[%emt 00:00:26]} 33. f4 {[%clk 00:07:43]} {[%emt 00:00:06]}
d4 {[%clk 00:05:04]} {[%emt 00:00:23]} 34. Kf2 {[%clk 00:07:50]} {[%emt
00:00:23]} d3 {[%clk 00:05:21]} {[%emt 00:00:13]} 35. Ke3 {[%clk 00:05:27]}
{[%emt 00:02:53]} Rd8 {[%clk 00:01:03]} {[%emt 00:04:48]} 36. Kd2 {[%clk
00:04:20]} {[%emt 00:01:37]} Bg4 {[%clk 00:00:41]} {[%emt 00:00:53]} 37. Nxf7
{[%clk 00:03:55]} {[%emt 00:00:55]} Rb8 {[%clk 00:01:05]} {[%emt 00:00:05]} 38.
Ne5 {[%clk 00:04:00]} {[%emt 00:00:26]} Be6 {[%clk 00:01:29]} {[%emt 00:00:05]}
39. b4 {[%clk 00:03:33]} {[%emt 00:00:58]} Bf5 {[%clk 00:00:42]} {[%emt
00:01:17]} 40. Nc6 {[%clk 00:18:55]} {[%emt 00:00:07]} 1-0

[Event "IV Elllobregat Open Chess Tmnt"]
[Site "Sant Boi de Llobregat, Spain"]
[Date "2023.12.03"]
[Round "4.3"]
[White "Aravindh, Chithambaram Vr."]
[Black "Agmanov, Zhandos"]
[Result "1-0"]
[TimeControl "90min/40moves + 15min/end + 30sec from move 1"]
[WhiteFideId "5072786"]
[BlackFideId "13708309"]
[WhiteElo "2638"]
[BlackElo "2448"]

1. c4 {[%clk 01:30:54]} {[%emt 00:00:05]} e6 {[%clk 01:28:42]} {[%emt
00:01:59]} 2. Nc3 {[%clk 01:31:14]} {[%emt 00:00:29]} d5 {[%clk 01:29:05]}
{[%emt 00:00:08]} 3. d4 {[%clk 01:31:38]} {[%emt 00:00:06]} Nf6 {[%clk
01:29:31]} {[%emt 00:00:04]} 4. cxd5 {[%clk 01:31:53]} {[%emt 00:00:15]} exd5
{[%clk 01:29:58]} {[%emt 00:00:04]} 5. Bg5 {[%clk 01:32:03]} {[%emt 00:00:20]}
c6 {[%clk 01:29:28]} {[%emt 00:01:00]} 6. e3 {[%clk 01:32:14]} {[%emt
00:00:19]} h6 {[%clk 01:29:53]} {[%emt 00:00:05]} 7. Bh4 {[%clk 01:31:59]}
{[%emt 00:00:43]} Be7 {[%clk 01:30:09]} {[%emt 00:00:15]} 8. Bd3 {[%clk
01:31:56]} {[%emt 00:00:33]} O-O {[%clk 01:30:24]} {[%emt 00:00:15]} 9. Nge2
{[%clk 01:27:45]} {[%emt 00:04:41]} Re8 {[%clk 01:27:28]} {[%emt 00:03:26]} 10.
O-O {[%clk 01:26:38]} {[%emt 00:01:37]} a5 {[%clk 01:27:48]} {[%emt 00:00:10]}
11. f3 {[%clk 01:23:21]} {[%emt 00:03:47]} b5 {[%clk 01:16:22]} {[%emt
00:11:58]} 12. Kh1 {[%clk 01:19:37]} {[%emt 00:04:13]} Nbd7 {[%clk 00:50:25]}
{[%emt 00:26:27]} 13. Bf2 {[%clk 01:13:26]} {[%emt 00:06:40]} Nb6 {[%clk
00:43:01]} {[%emt 00:07:55]} 14. Qc2 {[%clk 01:10:43]} {[%emt 00:03:12]} b4
{[%clk 00:27:29]} {[%emt 00:16:02]} 15. Na4 {[%clk 00:58:43]} {[%emt 00:12:28]}
Nxa4 {[%clk 00:23:08]} {[%emt 00:04:52]} 16. Qxa4 {[%clk 00:59:08]} {[%emt
00:00:06]} Bd7 {[%clk 00:22:07]} {[%emt 00:01:31]} 17. Qc2 {[%clk 00:59:25]}
{[%emt 00:00:11]} c5 {[%clk 00:18:29]} {[%emt 00:04:09]} 18. dxc5 {[%clk
00:59:09]} {[%emt 00:00:46]} Rc8 {[%clk 00:18:58]} {[%emt 00:00:02]} 19. Qd2
{[%clk 00:57:43]} {[%emt 00:01:55]} Bxc5 {[%clk 00:18:46]} {[%emt 00:00:42]} 20.
Nd4 {[%clk 00:55:37]} {[%emt 00:02:36]} Qb6 {[%clk 00:18:28]} {[%emt 00:00:48]}
21. Rfe1 {[%clk 00:55:55]} {[%emt 00:00:12]} b3 {[%clk 00:09:53]} {[%emt
00:09:06]} 22. axb3 {[%clk 00:49:54]} {[%emt 00:06:30]} Bb4 {[%clk 00:09:46]}
{[%emt 00:00:37]} 23. Qe2 {[%clk 00:50:17]} {[%emt 00:00:06]} Bxe1 {[%clk
00:10:04]} {[%emt 00:00:12]} 24. Bxe1 {[%clk 00:50:38]} {[%emt 00:00:09]} Rc5
{[%clk 00:07:20]} {[%emt 00:03:14]} 25. Bc3 {[%clk 00:49:44]} {[%emt 00:01:24]}
Rec8 {[%clk 00:03:40]} {[%emt 00:04:11]} 26. Qe1 {[%clk 00:47:20]} {[%emt
00:02:54]} Qd8 {[%clk 00:02:31]} {[%emt 00:01:40]} 27. b4 {[%clk 00:45:28]}
{[%emt 00:02:22]} axb4 {[%clk 00:01:18]} {[%emt 00:01:44]} 28. Bxb4 {[%clk
00:45:52]} {[%emt 00:00:06]} Rc4 {[%clk 00:00:48]} {[%emt 00:01:00]} 29. Bxc4
{[%clk 00:43:42]} {[%emt 00:02:40]} Rxc4 {[%clk 00:00:36]} {[%emt 00:00:42]} 30.
Bc3 {[%clk 00:43:25]} {[%emt 00:00:45]} Ne8 {[%clk 00:00:45]} {[%emt 00:00:22]}
31. Qg3 {[%clk 00:41:12]} {[%emt 00:02:43]} Qe7 {[%clk 00:00:55]} {[%emt
00:00:20]} 32. Qe1 {[%clk 00:32:35]} {[%emt 00:09:06]} Kh7 {[%clk 00:00:35]}
{[%emt 00:00:50]} 33. h3 {[%clk 00:32:41]} {[%emt 00:00:25]} Rc7 {[%clk
00:00:33]} {[%emt 00:00:33]} 34. Ra5 {[%clk 00:31:35]} {[%emt 00:01:36]} Nf6
{[%clk 00:00:50]} {[%emt 00:00:13]} 35. Ra8 {[%clk 00:29:12]} {[%emt 00:02:52]}
Rc8 {[%clk 00:00:59]} {[%emt 00:00:21]} 36. Rxc8 {[%clk 00:27:23]} {[%emt
00:02:19]} Bxc8 {[%clk 00:01:28]} 37. b4 {[%clk 00:27:42]} {[%emt 00:00:11]}
Ne8 {[%clk 00:00:55]} {[%emt 00:01:03]} 38. b5 {[%clk 00:27:37]} {[%emt
00:00:36]} Nc7 {[%clk 00:00:58]} {[%emt 00:00:27]} 39. b6 {[%clk 00:27:21]}
{[%emt 00:00:46]} Ne6 {[%clk 00:01:09]} {[%emt 00:00:19]} 40. Qb1+ {[%clk
00:41:12]} {[%emt 00:01:38]} Kg8 {[%clk 00:16:31]} {[%emt 00:00:07]} 41. Nf5
{[%clk 00:40:53]} {[%emt 00:00:49]} Qd7 {[%clk 00:14:45]} {[%emt 00:02:16]} 42.
Qb2 {[%clk 00:28:02]} {[%emt 00:13:21]} Nc5 {[%clk 00:10:07]} {[%emt 00:05:09]}
43. Nxg7 {[%clk 00:27:45]} {[%emt 00:00:46]} Na4 {[%clk 00:10:31]} {[%emt
00:00:07]} 44. Nh5 {[%clk 00:28:10]} {[%emt 00:00:05]} 1-0